fUSD/lending_fUSD_20240117
["ID","MTS","AMOUNT","RATE_DAILY","PERIOD"]
[311953761,1705515040120,-2098.28,0.00021914,2]
[311953826,1705515040713,-774.96,0.00021914,2]
[311954023,1705515042414,-505.51742744,0.00021914,2]
[311954037,1705515042530,-3837.74217012,0.00021914,2]
[311954039,1705515042544,-2101.39898836,0.00021914,2]
[311954041,1705515042558,-4149.0,0.00021914,2]
[311954057,1705515042691,-1518.25,0.00021914,2]
[311954363,1705515045536,-770.0,0.00021914,2]
[311954369,1705515045550,-301.71551016,0.00021914,2]
[311954384,1705515045594,-9194.53467206,0.00021914,2]
[311954389,1705515045606,-1526.6072753,0.00021914,2]
[311954404,1705515045652,-61580.75027216,0.00021914,2]
[311954409,1705515045665,-535.14393,0.00021914,2]
[311954449,1705515045820,-2799.75108141,0.00021914,2]
[311954451,1705515045834,-14867.96954712,0.00021914,2]
[311954453,1705515045844,-156.58819109,0.00021914,2]
[311954455,1705515045855,-653.27583542,0.00021914,2]
[311954458,1705515045866,-2014.07950634,0.00021914,2]
[311954460,1705515045876,-486.28507678,0.00021914,2]
[311954462,1705515045886,-614.9796451,0.00021914,2]
[311954758,1705515514258,204.0,0.00026286,8]
[311954759,1705515731490,453.09,0.00018316,2]
[311954760,1705515804401,3546.91,0.00018316,2]
[311954761,1705515804421,1644.3484924,0.00018316,2]
[311954762,1705515816430,2355.6515076,0.00018316,2]
[311954763,1705515816450,1676.65065889,0.00018316,2]
[311954764,1705515836756,155.92369904,0.00018316,2]
[311954765,1705515874227,205.0,0.00025938,9]
[311954774,1705516229763,451.34,0.00017906,2]
[311954781,1705516231567,-2605.02614452,0.00018731,2]
[311954782,1705516231577,-267.44254977,0.00018731,2]
[311954783,1705516231590,-275.39851632,0.00018731,2]
[311954784,1705516231599,-125.87313907,0.00018731,2]
[311954785,1705516231623,-116.58168747,0.00018731,2]
[311954786,1705516231633,-697.79476583,0.00018732,2]
[311954787,1705516231642,-314.24418711,0.00018732,2]
[311954788,1705516231652,-300.0,0.00018767,2]
[311954789,1705516231661,-150.0,0.00018767,2]
[311954790,1705516231670,-268.2918,0.00018769,2]
[311954791,1705516231680,-159.12156339,0.00018771,2]
[311954792,1705516231689,-159.12156332,0.00019158,2]
[311954793,1705516231699,-159.12156332,0.00019544,2]
[311954794,1705516231708,-10554.50841058,0.00019833,2]
[311954795,1705516231718,-22634.32,0.00019834,2]
[311954796,1705516231727,-233.63,0.00019834,2]
[311954797,1705516231737,-536.51,0.00019838,2]
[311954798,1705516231746,-174.72,0.00019879,2]
[311954799,1705516231756,-200.0,0.00019929,2]
[311954800,1705516231765,-159.12156332,0.00019931,2]
[311954801,1705516231775,-174.72,0.00020088,2]
[311954802,1705516231784,-155.45,0.00020089,2]
[311954803,1705516231793,-250.0,0.00020155,2]
[311954804,1705516231802,-451.34,0.0002017,2]
[311954805,1705516231811,-530.21,0.00020192,2]
[311954806,1705516231820,-156.91,0.00020199,2]
[311954807,1705516231829,-174.72,0.00020298,2]
[311954808,1705516231839,-159.12156332,0.00020318,2]
[311954809,1705516231848,-463.49,0.00020387,2]
[311954810,1705516231857,-174.72,0.00020507,2]
[311954811,1705516231866,-2000.0,0.00020548,2]
[311954812,1705516231876,-159.12156332,0.00020705,2]
[311954813,1705516231885,-174.72,0.00020716,2]
[311954814,1705516231894,-156.91,0.00020725,2]
[311954815,1705516231904,-122.96081024,0.00020785,2]
[311954818,1705516231916,-40.78918976,0.00020785,2]
[311954821,1705516231927,-352.1,0.00020916,2]
[311954824,1705516231937,-103.21249269,0.00020925,2]
[311954826,1705516231948,-71.50750731,0.00020925,2]
[311954828,1705516231957,-377.39501495,0.00020999,2]
[311954830,1705516231972,-354.26498505,0.00020999,2]
[311954833,1705516231981,-304.39560435,0.00021,2]
[311954837,1705516231996,-426.39866549,0.00021,2]
[311954839,1705516232006,-270.4,0.00021025,2]
[311954841,1705516232014,-66.57369041,0.00021025,2]
[311954843,1705516232026,-93.65630959,0.00021025,2]
[311954845,1705516232035,-159.12156332,0.00021091,2]
[311954847,1705516232045,-174.72,0.00021135,2]
[311954849,1705516232054,-530.21,0.0002117,2]
[311954851,1705516232063,-513.12,0.00021191,2]
[311954853,1705516232072,-270.4,0.00021246,2]
[311954855,1705516232081,-1418.97704991,0.00021246,3]
[311954856,1705516232090,-156.91,0.00021252,2]
[311954857,1705516232100,-174.72,0.00021344,2]
[311954858,1705516232113,-155.45,0.00021348,2]
[311954859,1705516232122,-222.50250077,0.00021398,4]
[311954860,1705516232134,-3227.44858762,0.00021416,2]
[311954861,1705516232144,-1330.67407982,0.00021457,2]
[311954862,1705516232172,-1151.35392073,0.00021457,2]
[311954863,1705516232184,-521.07491688,0.00021457,2]
[311954864,1705516234648,205.0,0.00025776,10]
[311954883,1705516237606,-205.0,0.00020072,2]
[311954884,1705516237619,-824.336,0.00021457,2]
[311954885,1705516237631,-1730.92187717,0.00021457,2]
[311954886,1705516237651,-8686.7579381,0.00021457,2]
[311954887,1705516237661,-270.4,0.00021468,2]
[311954888,1705516237670,-159.12156332,0.00021478,2]
[311954889,1705516237680,-155.21161762,0.00021514,2]
[311954890,1705516237691,-155.14895346,0.00021514,2]
[311954891,1705516237701,-258.77909786,0.00021514,2]
[311954892,1705516237711,-405.37255056,0.00021515,2]
[311954893,1705516237720,-1255.0842,0.00021516,2]
[311954894,1705516237730,-1000.0,0.00021516,2]
[311954895,1705516237740,-271412.5441,0.00021516,2]
[311954896,1705516237750,-251.1202,0.00021516,2]
[311954897,1705516237760,-758.74012726,0.00021528,2]
[311954898,1705516237771,-174.72,0.00021553,2]
[311954899,1705516237781,-351.20823415,0.00021606,2]
[311954900,1705516237791,-160.54104259,0.00021614,2]
[311954901,1705516237800,-338.16719386,0.00021614,2]
[311954902,1705516237810,-300.07685153,0.00021614,2]
[311954903,1705516237820,-278.63619624,0.00021614,2]
[311954904,1705516237829,-2606.43263937,0.00021614,2]
[311954905,1705516237838,-1248.20684203,0.00021614,2]
[311954906,1705516237848,-162.12583632,0.00021615,2]
[311954907,1705516237857,-150.0,0.00021615,2]
[311954908,1705516237867,-1000.0,0.00021616,2]
[311954909,1705516237876,-245000.0,0.00021616,2]
[311954910,1705516237885,-39465.5965,0.00021616,2]
[311954911,1705516237895,-500.0,0.00021616,2]
[311954912,1705516237904,-100000.0,0.00021616,2]
[311954913,1705516237913,-3227.44858762,0.00021628,2]
[311954914,1705516237923,-288.76,0.00021644,2]
[311954915,1705516237932,-758.74012726,0.00021673,2]
[311954916,1705516237944,-270.4,0.00021689,2]
[311954917,1705516237954,-398.48464407,0.00021695,2]
[311954918,1705516237967,-257.90158664,0.00021695,2]
[311954919,1705516237977,-250.0,0.0002174,2]
[311954920,1705516237987,-150.0,0.0002174,2]
[311954921,1705516237998,-150.0,0.0002174,2]
[311954922,1705516238009,-174.72,0.00021763,2]
[311954923,1705516238018,-555.7292,0.00021815,2]
[311954925,1705516238029,-250.0,0.00021817,2]
[311954926,1705516238039,-5000.0,0.00021817,2]
[311954927,1705516238049,-1060.6804,0.00021817,2]
[311954928,1705516238059,-12696.16206707,0.00021817,2]
[311954929,1705516238069,-211.48422446,0.00021817,2]
[311954930,1705516238078,-177.41890368,0.00021817,4]
[311954932,1705516238088,-1540.63032049,0.00021817,2]
[311954934,1705516238098,-1453.13345804,0.00021817,2]
[311954936,1705516238108,-497.00030337,0.00021817,2]
[311954938,1705516238118,-758.74012726,0.00021817,2]
[311954941,1705516238128,-2432.04104594,0.00021817,2]
[311954942,1705516238137,-3227.44858762,0.0002184,2]
[311954944,1705516238147,-159.12156332,0.00021865,2]
[311954946,1705516238157,-351.20823415,0.00021907,2]
[311954949,1705516238167,-270.4,0.0002191,2]
[311954951,1705516238177,-2284.72340309,0.00021914,2]
[311954953,1705516238187,-155.0,0.00021914,2]
[311954955,1705516238198,-2399.31331131,0.00021914,2]
[311954957,1705516238207,-188.6809466,0.00021914,2]
[311954959,1705516238217,-33336.08352019,0.00021914,2]
[311954961,1705516238226,-155.34434105,0.00021914,2]
[311954963,1705516238236,-4244.84167418,0.00021914,2]
[311954965,1705516238245,-1708.36719999,0.00021914,2]
[311954967,1705516238255,-155.0,0.00021914,2]
[311954969,1705516238264,-940.13112153,0.00021914,2]
[311954971,1705516238273,-4485.38425063,0.00021914,2]
[311954973,1705516238283,-155.0,0.00021914,2]
[311954975,1705516238292,-177.75042243,0.00021914,2]
[311954977,1705516238302,-238.95326144,0.00021914,2]
[311954979,1705516238312,-3857.52457021,0.00021914,2]
[311954981,1705516238321,-3043.00044003,0.00021914,2]
[311954983,1705516238330,-158.7139359,0.00021914,2]
[311954985,1705516238340,-10520.01750502,0.00021914,2]
[311954987,1705516238349,-2136.64432384,0.00021914,2]
[311954989,1705516238358,-265.35768401,0.00021914,2]
[311954991,1705516238368,-1370.98811656,0.00021914,2]
[311954993,1705516238378,-155.0,0.00021914,2]
[311954995,1705516238387,-155.0,0.00021914,2]
[311954998,1705516238397,-224.92856986,0.00021914,2]
[311955000,1705516238406,-326.6529487,0.00021914,2]
[311955002,1705516238417,-2886.2619,0.00021914,2]
[311955004,1705516238428,-3623.34664088,0.00021914,2]
[311955005,1705516238437,-997.95732003,0.00021914,4]
[311955008,1705516238451,-4655.81651437,0.00021914,2]
[311955010,1705516238466,-1914.12881296,0.00021914,2]
[311955012,1705516238478,-308.83142289,0.00021914,2]
[311955015,1705516238490,-262.96284194,0.00021915,2]
[311955017,1705516238502,-416.27651808,0.00021915,2]
[311955019,1705516238515,-34624.07992584,0.00021915,2]
[311955022,1705516238526,-12696.16206706,0.00021915,2]
[311955024,1705516238537,-254.11,0.00021916,2]
[311955026,1705516238549,-505627.29609809,0.00021916,2]
[311955028,1705516238559,-729.19,0.00021917,2]
[311955030,1705516238569,-500.0,0.00021917,2]
[311955032,1705516238579,-500.0,0.00021917,2]
[311955033,1705516238590,-500.0,0.00021917,2]
[311955034,1705516238601,-509.57658557,0.00021917,2]
[311955035,1705516238612,-502.65486772,0.00021917,2]
[311955036,1705516238624,-500.0,0.00021917,2]
[311955037,1705516238635,-502.01870842,0.00021917,2]
[311955038,1705516238646,-427.94873139,0.00021917,2]
[311955039,1705516238657,-500.0,0.00021917,2]
[311955041,1705516238669,-501.15592614,0.00021917,2]
[311955043,1705516238680,-500.0,0.00021917,2]
[311955046,1705516238693,-500.70931584,0.00021917,2]
[311955048,1705516238704,-500.0,0.00021917,2]
[311955050,1705516238715,-229.89109149,0.00021917,2]
[311955052,1705516238726,-500.0,0.00021917,2]
[311955054,1705516238737,-502.64246344,0.00021917,2]
[311955056,1705516238747,-172.09729316,0.00021917,2]
[311955058,1705516238757,-500.0,0.00021917,2]
[311955060,1705516238767,-500.0,0.00021917,2]
[311955062,1705516238777,-500.0,0.00021917,2]
[311955065,1705516238790,-500.0,0.00021917,2]
[311955067,1705516238801,-500.0,0.00021917,2]
[311955069,1705516238812,-501.28358872,0.00021917,2]
[311955071,1705516238823,-500.0,0.00021917,2]
[311955073,1705516238833,-511.58672284,0.00021917,2]
[311955076,1705516238844,-675.70199405,0.00021917,2]
[311955078,1705516238854,-500.0,0.00021917,2]
[311955080,1705516238865,-500.0,0.00021917,2]
[311955082,1705516238875,-500.0,0.00021917,2]
[311955084,1705516238885,-500.0,0.00021917,2]
[311955086,1705516238896,-500.0,0.00021917,2]
[311955089,1705516238907,-500.0,0.00021917,2]
[311955091,1705516238918,-500.0,0.00021917,2]
[311955093,1705516238927,-501.65874265,0.00021917,2]
[311955095,1705516238936,-500.0,0.00021917,2]
[311955097,1705516238948,-633.3800222,0.00021917,2]
[311955099,1705516238957,-408.41,0.00021917,2]
[311955102,1705516238970,-500.0,0.00021917,2]
[311955104,1705516238981,-500.0,0.00021917,2]
[311955106,1705516238992,-500.0,0.00021917,2]
[311955108,1705516239002,-500.0,0.00021917,2]
[311955110,1705516239013,-500.0,0.00021917,2]
[311955113,1705516239024,-500.0,0.00021917,2]
[311955115,1705516239035,-500.0,0.00021917,2]
[311955117,1705516239045,-500.0,0.00021917,2]
[311955119,1705516239056,-500.0,0.00021917,2]
[311955121,1705516239066,-500.0,0.00021917,2]
[311955123,1705516239076,-500.0,0.00021917,2]
[311955126,1705516239086,-500.0,0.00021917,2]
[311955128,1705516239097,-500.0,0.00021917,2]
[311955130,1705516239108,-500.0,0.00021917,2]
[311955132,1705516239119,-500.0,0.00021917,2]
[311955135,1705516239130,-500.0,0.00021917,2]
[311955137,1705516239141,-500.0,0.00021917,2]
[311955139,1705516239151,-500.0,0.00021917,2]
[311955141,1705516239163,-500.0,0.00021917,2]
[311955143,1705516239174,-500.0,0.00021917,2]
[311955146,1705516239185,-500.0,0.00021917,2]
[311955148,1705516239197,-500.0,0.00021917,2]
[311955150,1705516239209,-500.0,0.00021917,2]
[311955152,1705516239220,-500.0,0.00021917,2]
[311955154,1705516239231,-500.0,0.00021917,2]
[311955157,1705516239242,-500.0,0.00021917,2]
[311955159,1705516239253,-500.0,0.00021917,2]
[311955161,1705516239262,-500.0,0.00021917,2]
[311955163,1705516239272,-500.0,0.00021917,2]
[311955165,1705516239281,-500.0,0.00021917,2]
[311955167,1705516239291,-500.0,0.00021917,2]
[311955169,1705516239300,-161.55,0.00021917,2]
[311955171,1705516239310,-500.0,0.00021917,2]
[311955173,1705516239321,-500.0,0.00021917,2]
[311955175,1705516239332,-500.0,0.00021917,2]
[311955178,1705516239343,-500.0,0.00021917,2]
[311955180,1705516239353,-500.0,0.00021917,2]
[311955182,1705516239363,-500.0,0.00021917,2]
[311955184,1705516239374,-500.0,0.00021917,2]
[311955186,1705516239384,-500.0,0.00021917,2]
[311955189,1705516239395,-500.0,0.00021917,2]
[311955192,1705516239407,-500.0,0.00021917,2]
[311955195,1705516239417,-500.0,0.00021917,2]
[311955198,1705516239428,-582.29287026,0.00021917,2]
[311955200,1705516239438,-599.47,0.00021917,2]
[311955203,1705516239451,-500.0,0.00021917,2]
[311955206,1705516239462,-500.0,0.00021917,2]
[311955210,1705516239472,-500.0,0.00021917,2]
[311955213,1705516239482,-500.0,0.00021917,2]
[311955216,1705516239493,-500.0,0.00021917,2]
[311955220,1705516239504,-500.0,0.00021917,2]
[311955223,1705516239514,-501.98059409,0.00021917,2]
[311955226,1705516239525,-500.0,0.00021917,2]
[311955229,1705516239535,-567.99,0.00021917,2]
[311955232,1705516239546,-448.99874728,0.00021917,2]
[311955235,1705516239556,-507.12459092,0.00021917,2]
[311955238,1705516239566,-500.0,0.00021917,2]
[311955241,1705516239576,-541.13,0.00021917,2]
[311955243,1705516239586,-500.0,0.00021917,2]
[311955245,1705516239596,-468.9790765,0.00021917,2]
[311955247,1705516239606,-500.0,0.00021917,2]
[311955249,1705516239619,-500.0,0.00021917,2]
[311955252,1705516239634,-390.85287352,0.00021917,2]
[311955254,1705516239645,-500.0,0.00021917,2]
[311955256,1705516239656,-500.0,0.00021917,2]
[311955259,1705516239666,-500.0,0.00021917,2]
[311955261,1705516239677,-500.0,0.00021917,2]
[311955263,1705516239687,-500.0,0.00021917,2]
[311955265,1705516239701,-500.0,0.00021917,2]
[311955267,1705516239711,-308.4,0.00021917,2]
[311955269,1705516239722,-500.0,0.00021917,2]
[311955271,1705516239732,-500.0,0.00021917,2]
[311955274,1705516239742,-573.66,0.00021917,2]
[311955276,1705516239753,-183.79,0.00021917,2]
[311955278,1705516239764,-500.0,0.00021917,2]
[311955280,1705516239775,-500.0,0.00021917,2]
[311955282,1705516239785,-500.0,0.00021917,2]
[311955284,1705516239795,-500.0,0.00021917,2]
[311955287,1705516239806,-500.0,0.00021917,2]
[311955289,1705516239816,-500.0,0.00021917,2]
[311955291,1705516239827,-506.37,0.00021917,2]
[311955293,1705516239837,-500.0,0.00021917,2]
[311955295,1705516239847,-500.0,0.00021917,2]
[311955297,1705516239857,-593.01,0.00021917,2]
[311955299,1705516239867,-642.66,0.00021917,2]
[311955302,1705516239878,-500.0,0.00021917,2]
[311955304,1705516239887,-500.0,0.00021917,2]
[311955306,1705516239897,-500.0,0.00021917,2]
[311955308,1705516239908,-499.86694368,0.00021917,2]
[311955310,1705516239918,-241.72,0.00021917,2]
[311955312,1705516239928,-414.02400438,0.00021917,2]
[311955314,1705516239938,-500.0,0.00021917,2]
[311955317,1705516239949,-245.88,0.00021917,2]
[311955320,1705516239960,-199.4,0.00021917,2]
[311955323,1705516239970,-500.0,0.00021917,2]
[311955326,1705516239980,-500.0,0.00021917,2]
[311955328,1705516239990,-500.0,0.00021917,2]
[311955330,1705516240000,-500.0,0.00021917,2]
[311955333,1705516240011,-512.42908473,0.00021917,2]
[311955336,1705516240020,-500.0,0.00021917,2]
[311955339,1705516240030,-500.0,0.00021917,2]
[311955342,1705516240040,-500.0,0.00021917,2]
[311955345,1705516240050,-387.39158489,0.00021917,2]
[311955348,1705516240060,-500.0,0.00021917,2]
[311955351,1705516240069,-155.52603274,0.00021917,2]
[311955354,1705516240080,-500.0,0.00021917,2]
[311955359,1705516240090,-501.32353101,0.00021917,2]
[311955362,1705516240101,-500.15916242,0.00021917,2]
[311955365,1705516240111,-500.0,0.00021917,2]
[311955368,1705516240121,-494.43025649,0.00021917,2]
[311955371,1705516240132,-500.0,0.00021917,2]
[311955373,1705516240142,-500.0,0.00021917,2]
[311955375,1705516240152,-368.27,0.00021917,2]
[311955378,1705516240162,-500.0,0.00021917,2]
[311955380,1705516240173,-500.0,0.00021917,2]
[311955382,1705516240183,-500.0,0.00021917,2]
[311955384,1705516240193,-500.0,0.00021917,2]
[311955386,1705516240203,-486.72423186,0.00021917,2]
[311955388,1705516240213,-500.0,0.00021917,2]
[311955390,1705516240223,-500.0,0.00021917,2]
[311955392,1705516240234,-500.0,0.00021917,2]
[311955394,1705516240243,-500.0,0.00021917,2]
[311955396,1705516240254,-500.0,0.00021917,2]
[311955399,1705516240264,-500.0,0.00021917,2]
[311955401,1705516240273,-500.0,0.00021917,2]
[311955403,1705516240283,-500.0,0.00021917,2]
[311955405,1705516240294,-500.0,0.00021917,2]
[311955407,1705516240304,-500.0,0.00021917,2]
[311955409,1705516240314,-568.48,0.00021917,2]
[311955410,1705516240325,-500.0,0.00021917,2]
[311955411,1705516240336,-500.0,0.00021917,2]
[311955412,1705516240347,-575.68,0.00021917,2]
[311955413,1705516240357,-500.0,0.00021917,2]
[311955414,1705516240367,-500.0,0.00021917,2]
[311955415,1705516240377,-232.83,0.00021917,2]
[311955417,1705516240388,-496.18484363,0.00021917,2]
[311955419,1705516240398,-500.0,0.00021917,2]
[311955421,1705516240408,-500.0,0.00021917,2]
[311955423,1705516240418,-500.0,0.00021917,2]
[311955425,1705516240430,-500.0,0.00021917,2]
[311955428,1705516240442,-500.0,0.00021917,2]
[311955430,1705516240452,-500.0,0.00021917,2]
[311955432,1705516240463,-500.0,0.00021917,2]
[311955434,1705516240473,-500.0,0.00021917,2]
[311955436,1705516240484,-500.0,0.00021917,2]
[311955438,1705516240494,-500.0,0.00021917,2]
[311955440,1705516240506,-500.0,0.00021917,2]
[311955442,1705516240517,-511.11409913,0.00021917,2]
[311955445,1705516240528,-500.0,0.00021917,2]
[311955447,1705516240538,-500.0,0.00021917,2]
[311955449,1705516240549,-500.0,0.00021917,2]
[311955451,1705516240559,-405.36,0.00021917,2]
[311955453,1705516240570,-500.0,0.00021917,2]
[311955455,1705516240580,-500.0,0.00021917,2]
[311955457,1705516240592,-500.0,0.00021917,2]
[311955459,1705516240602,-269.45330703,0.00021917,2]
[311955462,1705516240612,-500.0,0.00021917,2]
[311955464,1705516240622,-500.0,0.00021917,2]
[311955466,1705516240632,-500.0,0.00021917,2]
[311955468,1705516240642,-500.0,0.00021917,2]
[311955470,1705516240652,-500.0,0.00021917,2]
[311955472,1705516240662,-577.44637326,0.00021917,2]
[311955474,1705516240672,-554.17,0.00021917,2]
[311955476,1705516240682,-500.0,0.00021917,2]
[311955478,1705516240692,-500.0,0.00021917,2]
[311955480,1705516240702,-500.0,0.00021917,2]
[311955482,1705516240712,-500.0,0.00021917,2]
[311955484,1705516240722,-500.0,0.00021917,2]
[311955487,1705516240733,-489.56,0.00021917,2]
[311955489,1705516240743,-500.0,0.00021917,2]
[311955491,1705516240752,-500.0,0.00021917,2]
[311955493,1705516240763,-553.5,0.00021917,2]
[311955495,1705516240773,-500.0,0.00021917,2]
[311955497,1705516240783,-525.38207456,0.00021917,2]
[311955499,1705516240793,-500.0,0.00021917,2]
[311955501,1705516240803,-500.0,0.00021917,2]
[311955503,1705516240813,-500.0,0.00021917,2]
[311955505,1705516240823,-500.0,0.00021917,2]
[311955507,1705516240833,-500.0,0.00021917,2]
[311955510,1705516240843,-500.0,0.00021917,2]
[311955512,1705516240853,-500.0,0.00021917,2]
[311955514,1705516240863,-544.77,0.00021917,2]
[311955516,1705516240873,-500.0,0.00021917,2]
[311955518,1705516240883,-500.0,0.00021917,2]
[311955520,1705516240893,-500.0,0.00021917,2]
[311955522,1705516240903,-500.0,0.00021917,2]
[311955524,1705516240913,-500.0,0.00021917,2]
[311955526,1705516240923,-532.65,0.00021917,2]
[311955528,1705516240933,-500.0,0.00021917,2]
[311955530,1705516240944,-500.0,0.00021917,2]
[311955533,1705516240955,-500.0,0.00021917,2]
[311955535,1705516240965,-500.0,0.00021917,2]
[311955537,1705516240976,-500.0,0.00021917,2]
[311955539,1705516240986,-500.0,0.00021917,2]
[311955541,1705516240996,-500.0,0.00021917,2]
[311955543,1705516241007,-517.81984418,0.00021917,2]
[311955545,1705516241017,-500.0,0.00021917,2]
[311955548,1705516241026,-500.0,0.00021917,2]
[311955549,1705516241037,-500.0,0.00021917,2]
[311955552,1705516241047,-496.63954742,0.00021917,2]
[311955554,1705516241058,-513.99426196,0.00021917,2]
[311955556,1705516241068,-500.0,0.00021917,2]
[311955558,1705516241078,-500.0,0.00021917,2]
[311955560,1705516241088,-500.0,0.00021917,2]
[311955562,1705516241098,-168.0699112,0.00021917,2]
[311955564,1705516241109,-500.0,0.00021917,2]
[311955566,1705516241119,-500.0,0.00021917,2]
[311955568,1705516241129,-500.0,0.00021917,2]
[311955571,1705516241139,-500.0,0.00021917,2]
[311955573,1705516241149,-500.0,0.00021917,2]
[311955575,1705516241160,-500.0,0.00021917,2]
[311955577,1705516241170,-513.83,0.00021917,2]
[311955579,1705516241180,-500.0,0.00021917,2]
[311955581,1705516241190,-500.0,0.00021917,2]
[311955583,1705516241201,-500.0,0.00021917,2]
[311955586,1705516241212,-500.0,0.00021917,2]
[311955588,1705516241222,-500.0,0.00021917,2]
[311955590,1705516241231,-500.0,0.00021917,2]
[311955592,1705516241241,-500.0,0.00021917,2]
[311955594,1705516241251,-500.0,0.00021917,2]
[311955596,1705516241261,-500.0,0.00021917,2]
[311955598,1705516241271,-500.0,0.00021917,2]
[311955600,1705516241280,-500.0,0.00021917,2]
[311955602,1705516241291,-500.0,0.00021917,2]
[311955604,1705516241300,-500.0,0.00021917,2]
[311955606,1705516241310,-500.0,0.00021917,2]
[311955608,1705516241319,-500.0,0.00021917,2]
[311955610,1705516241329,-500.0,0.00021917,2]
[311955613,1705516241339,-500.0,0.00021917,2]
[311955615,1705516241349,-500.0,0.00021917,2]
[311955617,1705516241359,-500.0,0.00021917,2]
[311955619,1705516241369,-500.0,0.00021917,2]
[311955621,1705516241379,-500.0,0.00021917,2]
[311955623,1705516241389,-500.0,0.00021917,2]
[311955625,1705516241399,-500.0,0.00021917,2]
[311955627,1705516241409,-500.0,0.00021917,2]
[311955629,1705516241420,-500.0,0.00021917,2]
[311955631,1705516241430,-500.0,0.00021917,2]
[311955634,1705516241441,-500.0,0.00021917,2]
[311955636,1705516241452,-500.0,0.00021917,2]
[311955638,1705516241462,-500.0,0.00021917,2]
[311955640,1705516241472,-500.0,0.00021917,2]
[311955642,1705516241481,-355.71,0.00021917,2]
[311955644,1705516241492,-500.0,0.00021917,2]
[311955646,1705516241503,-500.0,0.00021917,2]
[311955648,1705516241513,-500.0,0.00021917,2]
[311955650,1705516241523,-500.0,0.00021917,2]
[311955652,1705516241533,-500.0,0.00021917,2]
[311955655,1705516241544,-500.0,0.00021917,2]
[311955657,1705516241554,-577.96,0.00021917,2]
[311955659,1705516241563,-500.0,0.00021917,2]
[311955661,1705516241574,-500.0,0.00021917,2]
[311955663,1705516241584,-500.0,0.00021917,2]
[311955665,1705516241595,-500.0,0.00021917,2]
[311955667,1705516241606,-572.8,0.00021917,2]
[311955670,1705516241616,-572.8,0.00021917,2]
[311955672,1705516241626,-572.8,0.00021917,2]
[311955674,1705516241637,-572.8,0.00021917,2]
[311955676,1705516241647,-572.8,0.00021917,2]
[311955678,1705516241657,-572.8,0.00021917,2]
[311955680,1705516241667,-500.0,0.00021917,2]
[311955682,1705516241677,-572.8,0.00021917,2]
[311955718,1705516242069,-500.0,0.00021917,2]
[311955721,1705516242087,-500.0,0.00021917,2]
[311955724,1705516242102,-500.0,0.00021917,2]
[311955726,1705516242111,-500.0,0.00021917,2]
[311955728,1705516242120,-500.0,0.00021917,2]
[311955730,1705516242129,-500.0,0.00021917,2]
[311955732,1705516242137,-529.21,0.00021917,2]
[311955734,1705516242146,-500.0,0.00021917,2]
[311955736,1705516242155,-500.0,0.00021917,2]
[311955738,1705516242164,-385.4,0.00021917,2]
[311955740,1705516242173,-500.0,0.00021917,2]
[311955742,1705516242183,-500.0,0.00021917,2]
[311955744,1705516242195,-500.0,0.00021917,2]
[311955746,1705516242205,-500.0,0.00021917,2]
[311955748,1705516242215,-500.0,0.00021917,2]
[311955750,1705516242224,-500.0,0.00021917,2]
[311955752,1705516242233,-500.0,0.00021917,2]